{"text_format":"1","workbook":"xlsx","n_sheets":6,"sheets":["Voorblad","InfoType","Vb","Vb2","Ovz","Kleur"],"not_rendered":{"charts":0,"images":1,"macros":0,"external_links":0,"defined_names":5,"comments":0,"pivot_tables":0},"unopened":[],"bounds":{"document_bytes":16777216,"sheet_cells":100000,"rows_first":2000,"rows_last":500,"rows_between":2000,"halvings":0,"cell_chars":16384,"cell_head_chars":4096},"cells_cut":0,"cells_raw":0,"read":"whole","date_system":"1900"}

{"sheet":"Voorblad","index":0,"n_rows":34,"n_cols":14,"rows_kept":34,"cut":false,"hidden":false,"merged":[]}
[]
[]
[]
[]
[]
[]
[]
[]
[]
[]
[]
[]
[]
[]
[]
[]
[]
[]
[]
[]
[]
[]
[]
[null,null,null,null,null,null,null,null,null,null,null,null,null,"Voorbeeld materiaal -  Cel.Lezen"]
[]
[]
[]
[]
[]
[]
[]
[]
[null,null,null,null,null,null,null,null,null,null,null,null,null,"© 2015, G-Info/G. Verbruggen"]
[null,null,null,null,null,null,null,null,null,null,null,null,null,"www.ginfo.nl"]

{"sheet":"InfoType","index":1,"n_rows":98,"n_cols":3,"rows_kept":98,"cut":false,"hidden":false,"merged":[[86,1,90,1],[5,1,9,1],[13,1,19,1],[20,1,27,1],[45,1,48,1],[71,1,74,1],[75,1,78,1]]}
[]
[null,"InfoTypeNummer","Geeft als resultaat"]
[null,1,"De absolute celverwijzing als tekst van de cel linksboven in het aangegeven celbereik."]
[null,2,"Het rijnummer van de bovenste rij in het aangegeven celbereik."]
[null,3,"De kolomnummer van de meest linkse kolom in het aangegeven celbereik."]
[null,4,"Type van de inhoud van het aangegeven celbereik (of cel linksboven) waarbij: 1 = Getal"]
[null,null,"2 = Tekst"]
[null,null,"4 = Logische waarde"]
[null,null,"16 = Foutwaarde"]
[null,null,"64 = Matrix (verzameling)"]
[null,5,"De inhoud van de cel of het resultaat van de formule"]
[null,6,"De formule of waarde in cel afhankelijk van de celinhoud"]
[null,7,"Het celformaat zoals 0,00 of dd/mm/jjjj"]
[null,8,"Een getal die de uitlijning van de cel representeert waarbij: 1 = Algemeen"]
[null,null,"2 = Links"]
[null,null,"3 = Gecentreerd"]
[null,null,"4 = Rechts"]
[null,null,"5 = Gevuld"]
[null,null,"6 = Uitgevuld"]
[null,null,"7 = Gecentreerd over selectie"]
[null,9,"Een getal die de randstijl (links) representeert, waarbij 0 = Geen rand"]
[null,null,"1 = Dunne lijn"]
[null,null,"2 = Gemiddeld dikke lijn"]
[null,null,"3 = Gestreepte lijn"]
[null,null,"4 = Stippel lijn"]
[null,null,"5 = Dikke lijn"]
[null,null,"6 = Dubbele lijn"]
[null,null,"7 = Haarlijn"]
[null,10,"Een getal die de randstijl (rechts) representeert, zie 9"]
[null,11,"Een getal die de randstijl (boven) representeert, zie 9"]
[null,12,"Een getal die de randstijl (onder) representeert, zie 9"]
[null,13,"Getal die het Vulpatroon representeert van 0-18. Als er geen vulpatroon voor de cel is geselecteerd, dan wordt een 0 teruggegeven."]
[null,14,"Beveiliging, WAAR, als de inhoud van een cel is geblokkeerd, anders ONWAAR"]
[null,15,"Beveiliging, WAAR, als de inhoud van een cel is verborgen, anders ONWAAR"]
[null,16,"Een tabel met 2 elementen waarvan 1. het eerste element de breedte van de cel weergeeft 2. het tweede element een logische waarde bevat die aangeeft of het een door de gebruiker opgegeven breedte (ONWAAR) is of een standaardbreedte (WAAR)"]
[null,17,"De rijhoogte van de cel in punten."]
[null,18,"Naam van het lettertype dat voor de aangegeven cel geldt."]
[null,19,"Grootte van het lettertype dat voor de aangegeven cel geldt (in punten)."]
[null,20,"WAAR, als het eerste karakter in de cel vetgedrukt is, anders ONWAAR."]
[null,21,"WAAR, als het eerste karakter in de cel schuingedrukt is, anders ONWAAR."]
[null,22,"WAAR, als het eerste karakter in de cel onderstreept is, anders ONWAAR."]
[null,23,"WAAR, als het eerste karakter in de cel doorgehaald is, anders ONWAAR."]
[null,24,"Kleur van de inhoud van de cel (1-56). Als de kleur automatisch wordt toegekend, is het resultaat van deze formule 0."]
[null,25,"WAAR, als het eerste karakter in de cel omlijnd is, anders ONWAAR. Dit wordt niet ondersteund door Excel voor Windows."]
[null,26,"WAAR, als het eerste karakter in de cel beschaduwd is, anders ONWAAR. Dit wordt niet ondersteund door Excel voor Windows."]
[null,27,"Getal die aangeeft of er in de cel sprake is van een handmatig gedefinieerd paginaeinde, waarbij: 0 = Geen pagina-einde"]
[null,null,"1 = Pagina-einde voor celrij"]
[null,null,"2 = Pagina-einde voor celkolom"]
[null,null,"3 = Pagina-einde voor zowel celkolom als -rij."]
[null,28,"Niveau celrij binnen een overzicht (Groeperen)"]
[null,29,"Niveau celkolom binnen een overzicht (Groeperen)"]
[null,30,"Indien de celrij de samenvattingsrij is in een groep, dan WAAR, anders ONWAAR."]
[null,31,"Indien de celkolom de samenvattingskolom is in een groep, dan WAAR, anders ONWAAR."]
[null,32,"Naam van de werkmap en werkblad van het celbereik. bijv. [MAP1]Blad1"]
[null,33,"Als voor de cel tekstterugloop is aangezet, dan WAAR, anders ONWAAR."]
[null,34,"De kleur van de rand links als getal tussen de 1 en 56, als de kleur op automatisch staat, is het resultaat 0."]
[null,35,"De kleur van de rand rechts als getal tussen de 1 en 56, als de kleur op automatisch staat, is het resultaat 0."]
[null,36,"De kleur van de rand boven als getal tussen de 1 en 56, als de kleur op automatisch staat, is het resultaat 0."]
[null,37,"De kleur van de rand onder als getal tussen de 1 en 56, als de kleur op automatisch staat, is het resultaat 0."]
[null,38,"De kleur van de voorgrondschaduw als getal tussen de 1 en 56, als de kleur op automatisch staat, is het resultaat 0."]
[null,39,"De kleur van de achtergrondschaduw als getal tussen de 1 en 56, als de kleur op automatisch staat, is het resultaat 0."]
[null,40,"De opgegeven celstijl als tekstuele waarde."]
[null,41,"Geeft de formule (of waarde) in de actieve cel terug zonder deze te vertalen (t.b.v. international werkbladen)"]
[null,42,"Geeft de horizontale afstand in punten van de linkerkant van het actieve scherm naar de linkerkant van de cel. Deze waarde kan negatief worden op het moment er voorbij de actieve cel wordt gebladerd."]
[null,43,"Geeft de verticale afstand in punten van de bovenkant van het actieve scherm naar de bovenkant van de cel. Deze waarde kan negatief worden op het moment er voorbij de actieve cel wordt gebladerd."]
[null,44,"Geeft de horizontale afstand in punten van de linkerkant van het actieve scherm naar de rechterkant van de cel. Deze waarde kan negatief worden op het moment er voorbij de actieve cel wordt gebladerd."]
[null,45,"Geeft de verticale afstand in punten van de bovenkant van het actieve scherm naar de onderkant van de cel. Deze waarde kan negatief worden op het moment er voorbij de actieve cel wordt gebladerd."]
[null,46,"WAAR, als de cel een opmerking bevat, anders ONWAAR."]
[null,47,"WAAR, als de cel een opmerking met geluid bevat, anders ONWAAR (Excel 5, 95)"]
[null,48,"WAAR, als de cel een formule bevat, anders ONWAAR."]
[null,49,"WAAR, als de cel een matrixformule bevat, anders ONWAAR"]
[null,50,"Getal die de verticale uitlijning in de cel aangeeft, waarbij: 1 = Boven"]
[null,null,"2 = Gecentreerd"]
[null,null,"3 = Onder"]
[null,null,"4 = Uitgevuld"]
[null,51,"Getal die de verticale stand van de celinhoud aangeeft, waarbij: 1. Horizontaal"]
[null,null,"2. Verticaal"]
[null,null,"3. Van beneden naar boven"]
[null,null,"4. Van boven naar beneden"]
[null,52,"Geeft het voorloopkarakter van de cel (i.g.v. tekst = \"'\" (enkele quote)). Anders leeg."]
[null,53,"Geeft de inhoud van de cel zoals deze wordt weergegeven als tekst, inclusief symbolen ed."]
[null,54,"Geeft de naam van de draaitabel waarin de actieve cel zich bevindt."]
[null,55,"Geeft de positie van de cel binnen de draaitabel."]
[null,56,"Geeft de veldnaam van de cel binnen de draaitabel waarbinnen de actieve cel valt."]
[null,57,"WAAR, als het eerste karakter in de cel als superscript is geformatteerd, anders ONWAAR."]
[null,58,"Geeft het lettertype als tekststring van het eerste karakter (of de gehele tekst) in de actieve cel."]
[null,59,"Geeft het getal van het type onderstreping, waarbij 1 = Geen"]
[null,null,"2 = Enkel"]
[null,null,"3 = Dubbel"]
[null,null,"4 = Enkel financieel"]
[null,null,"5 = Dubbel financieel"]
[null,60,"WAAR, als het eerste karakter ind e cel als subscript is geformatteerd, anders ONWAAR"]
[null,61,"Geeft de naam van de draaitabel waarin de actieve cel zich bevindt als tekst."]
[null,62,"Geeft de naam van de werkmap en het huidige werkblad in de vorm \"[Map1.xlsm]Blad1\""]
[null,63,"Geeft de achtegrondkleur(getal) van het patroon in de opgegeven cel."]
[null,64,"Geeft de voorgrondkleur van het patroon in opgegeven cel."]
[null,65,"WAAR, als de inspring uitlijning in de cel aanstaat, anders ONWAAR (afhankelijk van de versie van Excel"]
[null,66,"Geeft de naam van de werkmap bijv. Map1.xlsm."]

{"sheet":"Vb","index":2,"n_rows":15,"n_cols":4,"rows_kept":15,"cut":false,"hidden":false,"merged":[]}
[]
[null,"Maand","Bedrag","FormuleJaNee?"]
[null,"jan",1,{"$f":"BevatFormule","v":false}]
[null,"feb",2,{"$f":"BevatFormule","v":false}]
[null,"mrt",3,{"$f":"BevatFormule","v":false}]
[null,"apr",4,{"$f":"BevatFormule","v":false}]
[null,"mei",5,{"$f":"BevatFormule","v":false}]
[null,"jun",6,{"$f":"BevatFormule","v":false}]
[null,"jul",7,{"$f":"BevatFormule","v":false}]
[null,"aug",8,{"$f":"BevatFormule","v":false}]
[null,"sep",9,{"$f":"BevatFormule","v":false}]
[null,"okt",10,{"$f":"BevatFormule","v":false}]
[null,"nov",11,{"$f":"BevatFormule","v":false}]
[null,"dec",12,{"$f":"BevatFormule","v":false}]
[null,"Totaal",{"$f":"SUM(C3:C14)","v":78},{"$f":"BevatFormule","v":true}]

{"sheet":"Vb2","index":3,"n_rows":15,"n_cols":3,"rows_kept":15,"cut":false,"hidden":false,"merged":[]}
[]
[null,"Maand","Bedrag"]
[null,"jan",1]
[null,"feb",2]
[null,"mrt",3]
[null,"apr",4]
[null,"mei",5]
[null,"jun",6]
[null,"jul",7]
[null,"aug",8]
[null,"sep",9]
[null,"okt",10]
[null,"nov",11]
[null,"dec",12]
[null,"Totaal",{"$f":"SUM(C3:C14)","v":78}]

{"sheet":"Ovz","index":4,"n_rows":9,"n_cols":3,"rows_kept":9,"cut":false,"hidden":false,"merged":[]}
[]
[null,"InfoTypeNummer",1]
[]
[null,"Vb","Resultaat"]
[null,"test",{"$f":"CelInfo","v":"$B$5"}]
[null,1,{"$f":"CelInfo","v":"$B$6"}]
[null,2,{"$f":"CelInfo","v":"$B$7"}]
[null,3,{"$f":"CelInfo","v":"$B$8"}]
[null,{"$f":"SUM(B6:B8)","v":6},{"$f":"CelInfo","v":"$B$9"}]

{"sheet":"Kleur","index":5,"n_rows":14,"n_cols":6,"rows_kept":14,"cut":false,"hidden":false,"merged":[]}
[]
[null,"Kleur","Code",null,"Kleur","Code"]
[null,null,{"$f":"CelKleur","v":53},null,null,{"$f":"CelKleur2","v":53}]
[null,null,{"$f":"CelKleur","v":3},null,null,{"$f":"CelKleur2","v":3}]
[null,null,{"$f":"CelKleur","v":44},null,null,{"$f":"CelKleur2","v":44}]
[null,null,{"$f":"CelKleur","v":6},null,null,{"$f":"CelKleur2","v":6}]
[null,null,{"$f":"CelKleur","v":43},null,null,{"$f":"CelKleur2","v":43}]
[null,null,{"$f":"CelKleur","v":10},null,null,{"$f":"CelKleur2","v":10}]
[null,null,{"$f":"CelKleur","v":33},null,null,{"$f":"CelKleur2","v":33}]
[null,null,{"$f":"CelKleur","v":23},null,null,{"$f":"CelKleur2","v":23}]
[null,null,{"$f":"CelKleur","v":49},null,null,{"$f":"CelKleur2","v":49}]
[null,null,{"$f":"CelKleur","v":29},null,null,{"$f":"CelKleur2","v":29}]
[null,null,{"$f":"CelKleur","v":50},null,null,{"$f":"CelKleur2","v":50}]
[null,null,{"$f":"CelKleur","v":0},null,null,{"$f":"CelKleur2","v":0}]